fUST/lending_fUST_20250808
["ID","MTS","AMOUNT","RATE_DAILY","PERIOD"]
[377961789,1754630640527,-172.35598676,0.00021465,2]
[377961790,1754630644511,-300.0,0.00021465,2]
[377961791,1754630645974,500.0,0.0003,120]
[377961792,1754630646162,-175.48314076,0.00021465,2]
[377961793,1754630649068,-223.20976835,0.00021465,2]
[377961794,1754630652628,-377.27959971,0.00021465,2]
[377961795,1754630655215,-195.88687027,0.00021465,2]
[377961796,1754630658589,-256.41186034,0.00021465,2]
[377961797,1754630662495,-306.27872693,0.00021465,2]
[377961798,1754630665298,-209.7852078,0.00021465,2]
[377961799,1754630668749,-228.64114643,0.00021465,2]
[377961800,1754630672041,-296.86526874,0.00021465,2]
[377961803,1754630673858,-208.15912163,0.00021465,2]
[377961805,1754630676309,-152.31541259,0.00021465,2]
[377961806,1754630679051,-275.98493414,0.00021465,2]
[377961807,1754630681379,-264.6835185,0.00021465,2]
[377961808,1754630685363,-221.12734988,0.00021465,2]
[377961809,1754630688103,-242.68490031,0.00021465,2]
[377961810,1754630689754,-228.13483478,0.00021465,2]
[377961811,1754630692877,-175.47117275,0.00021465,2]
[377961812,1754630695110,-183.73718769,0.00021465,2]
[377961813,1754630696675,-202.58057387,0.00021465,2]
[377961814,1754630700801,-420.50189317,0.00021465,2]
[377961815,1754630702598,-288.45010698,0.00021463,2]
[377961816,1754630704273,-11.54989302,0.00021463,2]
[377961817,1754630704297,-400.12308028,0.00021465,2]
[377961818,1754630706699,-167.47385046,0.00021465,2]
[377961819,1754630711307,-235.2679377,0.00021463,2]
[377961820,1754630717007,-152.80621583,0.00021463,2]
[377961821,1754630720372,-158.16062765,0.00021463,2]
[377961822,1754630725240,-292.07768417,0.00021463,2]
[377961823,1754630728671,-266.49136218,0.00021463,2]
[377961824,1754630731341,-95.19617247,0.00021463,2]
[377961825,1754630731365,-57.61004336,0.00021465,2]
[377961827,1754630736139,-207.13102128,0.00021465,2]
[377961828,1754630737980,-297.30091409,0.00021465,2]
[377961829,1754630742150,-441.76536822,0.00021465,2]
[377961832,1754630745341,-285.62827839,0.00021465,2]
[377961833,1754630749386,-305.60840866,0.00021465,2]
[377961834,1754630751678,-179.09037233,0.00021465,2]
[377961835,1754630754625,-309.80327371,0.00021465,2]
[377961836,1754630758137,-173.45131951,0.00021465,2]
[377961837,1754630762056,-251.70148214,0.00021463,2]
[377961838,1754630764692,-218.52548466,0.00021463,2]
[377961839,1754630764715,-66.88073899,0.00021463,2]
[377961840,1754630766462,-233.11926101,0.00021463,2]
[377961841,1754630766484,-96.78010837,0.00021465,2]
[377961842,1754630772659,-215.67572644,0.00021465,2]
[377961843,1754630775028,-213.79509063,0.00021465,2]
[377961848,1754630874965,-165.88435703,0.00021363,2]
[377961849,1754630874987,-55.02894355,0.00021363,2]
[377961850,1754630880010,-177.36082434,0.00021363,2]
[377961851,1754630884733,-175.48314076,0.00021363,2]
[377961852,1754630886426,-164.3460251,0.00021363,2]
[377961854,1754630890817,-323.92514234,0.00021363,2]
[377961855,1754630894474,-241.02061243,0.00021363,2]
[377961856,1754630897273,-160.0,0.00021363,2]
[377961857,1754630902691,-179.34104173,0.00021363,2]
[377961858,1754630904037,800.0,0.00025,31]
[377961859,1754630906280,-167.02182767,0.00021363,2]
[377961860,1754630908524,-179.37001473,0.00021363,2]
[377961861,1754630910732,-307.77842757,0.00021363,2]
[377961862,1754630913702,-201.90409038,0.00021363,2]
[377961863,1754630916426,-183.07825943,0.00021363,2]
[377961864,1754630918244,-181.07534553,0.00021363,2]
[377961865,1754630918762,3518.60127238,0.0002,2]
[377961866,1754630921123,-163.43933649,0.00021363,2]
[377961869,1754630924310,-171.54027768,0.00021363,2]
[377961870,1754630926013,-486.52585048,0.00021363,2]
[377961871,1754630927891,-203.87393504,0.00021363,2]
[377961872,1754630930015,-163.43972002,0.00021363,2]
[377961873,1754630932229,-151.68918627,0.00021363,2]
[377961874,1754630934631,-188.8295949,0.00021363,2]
[377961875,1754630936233,-302.50162471,0.00021363,2]
[377961876,1754630937803,-493.5833168,0.00021363,2]
[377961877,1754630944626,-203.000812,0.00021364,2]
[377961878,1754630945148,43.64432486,0.00021363,2]
[377961879,1754630948671,-206.10990735,0.00021363,2]
[377961880,1754630957935,-414.55447759,0.00021363,2]
[377961881,1754630961031,-167.2138874,0.00021363,2]
[377961882,1754630964149,-292.44290327,0.00021363,2]
[377961883,1754630966553,-236.62481565,0.00021363,2]
[377961884,1754630969844,-176.0257371,0.00021363,2]
[377961983,1754631036940,-169.73793038,0.00021363,2]
[377961987,1754631038118,-30.06545542,0.00021363,2]
[377961988,1754631038128,-300.0,0.00021462,2]
[377961989,1754631038138,-1200.0,0.00021462,2]
[377961990,1754631038147,-1200.0,0.00021463,2]
[377961991,1754631038156,-300.0,0.00021463,2]
[377961992,1754631038164,-300.0,0.00021463,2]
[377961993,1754631038173,-300.0,0.00021463,2]
[377961994,1754631038182,-300.0,0.00021463,2]
[377961995,1754631038191,-12141.6937703,0.00021465,2]
[377961996,1754631038201,-251.70148214,0.00021465,2]
[377961997,1754631038210,-199.80338576,0.00021477,2]
[377961998,1754631038219,-199.80338576,0.0002159,2]
[377961999,1754631038229,-460.0,0.00021917,2]
[377962000,1754631038239,-460.0,0.00021917,2]
[377962001,1754631038248,-989.44,0.00021917,2]
[377962002,1754631038257,-460.0,0.00021917,2]
[377962003,1754631038266,-505.25,0.00021917,2]
[377962004,1754631038275,-600.8,0.00021917,2]
[377962005,1754631038284,-460.0,0.00021917,2]
[377962006,1754631038293,-559.46,0.00021917,2]
[377962007,1754631038302,-460.0,0.00021917,2]
[377962008,1754631038311,-460.0,0.00021917,2]
[377962009,1754631038321,-460.0,0.00021917,2]
[377962010,1754631038330,-460.0,0.00021917,2]
[377962011,1754631038339,-460.0,0.00021917,2]
[377962012,1754631038348,-460.0,0.00021917,2]
[377962013,1754631038357,-151.79739073,0.0002209,2]
[377962014,1754631038367,-472.87,0.0002219,2]
[377962015,1754631038376,-460.0,0.0002219,2]
[377962016,1754631038385,-460.0,0.0002219,2]
[377962017,1754631038394,-460.0,0.0002219,2]
[377962018,1754631038404,-460.0,0.0002219,2]
[377962019,1754631038413,-460.0,0.0002219,2]
[377962020,1754631038422,-460.0,0.0002219,2]
[377962021,1754631038432,-460.0,0.0002219,2]
[377962022,1754631038441,-460.0,0.0002219,2]
[377962023,1754631038451,-639.25,0.0002219,2]
[377962024,1754631038461,-460.0,0.0002219,2]
[377962026,1754631038470,-1130.57,0.0002219,2]
[377962028,1754631038480,-426.49,0.0002219,2]
[377962030,1754631038488,-460.0,0.0002219,2]
[377962032,1754631038498,-460.0,0.0002219,2]
[377962034,1754631038507,-460.0,0.0002219,2]
[377962036,1754631038516,-1075.21,0.0002219,2]
[377962038,1754631038525,-880.66,0.0002219,2]
[377962040,1754631038534,-460.0,0.0002219,2]
[377962042,1754631038543,-460.0,0.00022191,2]
[377962044,1754631038552,-460.0,0.00022191,2]
[377962046,1754631038562,-989.44,0.00022191,2]
[377962048,1754631038571,-460.0,0.00022191,2]
[377962050,1754631038580,-505.25,0.00022191,2]
[377962052,1754631038590,-600.8,0.00022191,2]
[377962054,1754631038599,-460.0,0.00022191,2]
[377962056,1754631038608,-559.46,0.00022191,2]
[377962059,1754631038618,-460.0,0.00022191,2]
[377962061,1754631038627,-460.0,0.00022191,2]
[377962063,1754631038636,-460.0,0.00022191,2]
[377962065,1754631038645,-460.0,0.00022191,2]
[377962067,1754631038654,-460.0,0.00022191,2]
[377962069,1754631038663,-472.87,0.00022464,2]
[377962071,1754631038672,-460.0,0.00022464,2]
[377962072,1754631038682,-460.0,0.00022464,2]
[377962075,1754631038691,-460.0,0.00022464,2]
[377962077,1754631038700,-460.0,0.00022464,2]
[377962078,1754631038710,-460.0,0.00022464,2]
[377962080,1754631038719,-460.0,0.00022464,2]
[377962082,1754631038728,-460.0,0.00022464,2]
[377962085,1754631038738,-460.0,0.00022464,2]
[377962087,1754631038747,-639.25,0.00022464,2]
[377962089,1754631038756,-460.0,0.00022464,2]
[377962091,1754631038765,-1130.57,0.00022464,2]
[377962092,1754631038775,-460.0,0.00022464,2]
[377962095,1754631038785,-420.79054366,0.00022464,2]
[377962097,1754631038796,-460.0,0.00022464,2]
[377962100,1754631038815,-1075.21,0.00022464,2]
[377962102,1754631038825,-880.66,0.00022464,2]
[377962104,1754631038835,-460.0,0.00022464,2]
[377962106,1754631038845,-460.0,0.00022465,2]
[377962108,1754631038855,-460.0,0.00022465,2]
[377962110,1754631038864,-989.44,0.00022465,2]
[377962112,1754631038874,-587.79,0.00022465,2]
[377962114,1754631038884,-505.25,0.00022465,2]
[377962116,1754631038893,-600.8,0.00022465,2]
[377962118,1754631038903,-460.0,0.00022465,2]
[377962120,1754631038913,-559.46,0.00022465,2]
[377962122,1754631038922,-460.0,0.00022465,2]
[377962124,1754631038932,-460.0,0.00022465,2]
[377962126,1754631038944,-460.0,0.00022465,2]
[377962128,1754631038953,-460.0,0.00022465,2]
[377962131,1754631038963,-200.0,0.00022537,15]
[377962133,1754631038973,-300.0,0.00022537,15]
[377962135,1754631038986,-472.87,0.00022738,2]
[377962137,1754631038995,-424.55,0.00022738,2]
[377962139,1754631039005,-460.0,0.00022738,2]
[377962141,1754631039015,-460.0,0.00022738,2]
[377962143,1754631039025,-460.0,0.00022738,2]
[377962145,1754631039034,-460.0,0.00022738,2]
[377962147,1754631039045,-460.0,0.00022738,2]
[377962149,1754631039055,-219.81,0.00022738,2]
[377962151,1754631039065,-460.0,0.00022738,2]
[377962153,1754631039075,-639.25,0.00022738,2]
[377962155,1754631039084,-460.0,0.00022738,2]
[377962157,1754631039094,-1130.57,0.00022738,2]
[377962159,1754631039104,-460.0,0.00022738,2]
[377962161,1754631039114,-460.0,0.00022738,2]
[377962163,1754631039123,-1075.21,0.00022738,2]
[377962165,1754631039132,-880.66,0.00022738,2]
[377962167,1754631039142,-443.196811,0.00022738,2]
[377962169,1754631039151,-460.0,0.00022739,2]
[377962171,1754631039161,-460.0,0.00022739,2]
[377962173,1754631039170,-989.44,0.00022739,2]
[377962175,1754631039180,-505.25,0.00022739,2]
[377962177,1754631039189,-600.8,0.00022739,2]
[377962179,1754631039199,-460.0,0.00022739,2]
[377962181,1754631039208,-559.46,0.00022739,2]
[377962183,1754631039218,-460.0,0.00022739,2]
[377962185,1754631039228,-460.0,0.00022739,2]
[377962187,1754631039238,-460.0,0.00022739,2]
[377962189,1754631039247,-460.0,0.00022739,2]
[377962191,1754631039257,-56895.22967357,0.000229,7]
[377962193,1754631039266,-160.0,0.00022904,2]
[377962195,1754631039275,-160.0,0.00022904,2]
[377962197,1754631039284,-842.78739015,0.00022908,2]
[377962199,1754631039294,-461.45099301,0.00022908,2]
[377962201,1754631039303,-160.0,0.00022908,2]
[377962203,1754631039313,-160.0,0.00022908,2]
[377962206,1754631039323,-312.16666667,0.00022908,2]
[377962208,1754631039332,-12663.41139009,0.00022908,2]
[377962210,1754631039341,-216.5651299,0.00022908,2]
[377962212,1754631039351,-160.0,0.00022908,2]
[377962213,1754631039360,-160.0,0.00022908,2]
[377962215,1754631039370,-527.68033864,0.00022908,2]
[377962218,1754631039380,-231.87430077,0.00022908,2]
[377962220,1754631039389,-2000.00965255,0.00023,7]
[377962222,1754631039399,-193.86855023,0.00023,2]
[377962224,1754631039408,-1345.21929793,0.00023,2]
[377962226,1754631039417,-1339.95733894,0.00023,2]
[377962228,1754631039427,-160.0,0.00023,2]
[377962230,1754631039436,-472.87,0.00023012,2]
[377962232,1754631039445,-460.0,0.00023012,2]
[377962234,1754631039455,-460.0,0.00023012,2]
[377962236,1754631039464,-460.0,0.00023012,2]
[377962238,1754631039474,-460.0,0.00023012,2]
[377962240,1754631039485,-460.0,0.00023012,2]
[377962242,1754631039494,-460.0,0.00023012,2]
[377962244,1754631039504,-639.25,0.00023012,2]
[377962246,1754631039514,-460.0,0.00023012,2]
[377962248,1754631039523,-1130.57,0.00023012,2]
[377962250,1754631039533,-460.0,0.00023012,2]
[377962252,1754631039542,-460.0,0.00023012,2]
[377962254,1754631039551,-1075.21,0.00023012,2]
[377962256,1754631039561,-880.66,0.00023012,2]
[377962258,1754631039570,-390.89,0.00023013,2]
[377962260,1754631039580,-294.97151899,0.00023013,2]
[377962262,1754631039589,-989.44,0.00023013,2]
[377962264,1754631039599,-505.25,0.00023013,2]
[377962266,1754631039609,-600.8,0.00023013,2]
[377962268,1754631039618,-460.0,0.00023013,2]
[377962270,1754631039628,-559.46,0.00023013,2]
[377962272,1754631039637,-460.0,0.00023013,2]
[377962274,1754631039646,-460.0,0.00023013,2]
[377962276,1754631039656,-460.0,0.00023013,2]
[377962278,1754631039666,-460.0,0.00023013,2]
[377962280,1754631039677,-151.0,0.00023068,2]
[377962282,1754631039687,-151.0,0.00023068,2]
[377962284,1754631039698,-151.0,0.00023068,2]
[377962286,1754631039707,-151.0,0.00023068,2]
[377962288,1754631039717,-151.0,0.00023068,2]
[377962290,1754631039727,-151.0,0.00023068,2]
[377962291,1754631039737,-151.0,0.00023068,2]
[377962294,1754631039747,-151.0,0.00023068,2]
[377962296,1754631039756,-151.0,0.00023068,2]
[377962298,1754631039766,-151.0,0.00023068,2]
[377962299,1754631039775,-151.0,0.00023068,2]
[377962301,1754631039784,-151.0,0.00023068,2]
[377962304,1754631039793,-215.35,0.00023283,2]
[377962306,1754631039802,-472.87,0.00023286,2]
[377962308,1754631039812,-232.8,0.00023286,2]
[377962309,1754631039821,-460.0,0.00023286,2]
[377962311,1754631039830,-460.0,0.00023286,2]
[377962313,1754631039839,-460.0,0.00023286,2]
[377962315,1754631039848,-460.0,0.00023286,2]
[377962318,1754631039858,-460.0,0.00023286,2]
[377962320,1754631039868,-639.25,0.00023286,2]
[377962322,1754631039880,-460.0,0.00023286,2]
[377962324,1754631039890,-1130.57,0.00023286,2]
[377962326,1754631039900,-460.0,0.00023286,2]
[377962328,1754631039909,-460.0,0.00023286,2]
[377962330,1754631039918,-1075.21,0.00023286,2]
[377962332,1754631039928,-880.66,0.00023286,2]
[377962334,1754631039938,-989.44,0.00023287,2]
[377962336,1754631039948,-505.25,0.00023287,2]
[377962338,1754631039957,-600.8,0.00023287,2]
[377962340,1754631039967,-460.0,0.00023287,2]
[377962342,1754631039980,-559.46,0.00023287,2]
[377962344,1754631039990,-460.0,0.00023287,2]
[377962346,1754631039999,-460.0,0.00023287,2]
[377962348,1754631040009,-460.0,0.00023287,2]
[377962350,1754631040018,-460.0,0.00023287,2]
[377962352,1754631040026,-420.0,0.00023336,2]
[377962354,1754631040036,-500.0,0.00023421,2]
[377962356,1754631040045,-1680.0,0.00023445,2]
[377962359,1754631040054,-472.87,0.0002356,2]
[377962361,1754631040064,-460.0,0.0002356,2]
[377962363,1754631040073,-460.0,0.0002356,2]
[377962365,1754631040082,-460.0,0.0002356,2]
[377962367,1754631040091,-460.0,0.0002356,2]
[377962369,1754631040100,-460.0,0.0002356,2]
[377962371,1754631040110,-639.25,0.0002356,2]
[377962373,1754631040120,-251.82,0.0002356,2]
[377962375,1754631040129,-1130.57,0.0002356,2]
[377962377,1754631040139,-460.0,0.0002356,2]
[377962379,1754631040148,-460.0,0.0002356,2]
[377962381,1754631040158,-1075.21,0.0002356,2]
[377962383,1754631040168,-880.66,0.0002356,2]
[377962385,1754631040177,-989.44,0.00023561,2]
[377962387,1754631040187,-505.25,0.00023561,2]
[377962389,1754631040196,-600.8,0.00023561,2]
[377962391,1754631040206,-460.0,0.00023561,2]
[377962393,1754631040215,-559.46,0.00023561,2]
[377962395,1754631040225,-460.0,0.00023561,2]
[377962397,1754631040235,-460.0,0.00023561,2]
[377962399,1754631040244,-460.0,0.00023561,2]
[377962401,1754631040254,-460.0,0.00023561,2]
[377962403,1754631040263,-472.87,0.00023834,2]
[377962405,1754631040273,-318.9979287,0.00023834,2]
[377962407,1754631040282,-460.0,0.00023834,2]
[377962409,1754631040291,-460.0,0.00023834,2]
[377962411,1754631040300,-460.0,0.00023834,2]
[377962413,1754631040309,-460.0,0.00023834,2]
[377962415,1754631040318,-639.25,0.00023834,2]
[377962417,1754631040327,-1130.57,0.00023834,2]
[377962419,1754631040337,-221.67,0.00023834,2]
[377962421,1754631040346,-460.0,0.00023834,2]
[377962424,1754631040355,-1075.21,0.00023834,2]
[377962425,1754631040365,-880.66,0.00023834,2]
[377962426,1754631040374,-989.44,0.00023835,2]
[377962427,1754631040383,-505.25,0.00023835,2]
[377962428,1754631040392,-600.8,0.00023835,2]
[377962429,1754631040401,-460.0,0.00023835,2]
[377962430,1754631040410,-559.46,0.00023835,2]
[377962431,1754631040419,-460.0,0.00023835,2]
[377962432,1754631040428,-460.0,0.00023835,2]
[377962433,1754631040437,-460.0,0.00023835,2]
[377962434,1754631040446,-460.0,0.00023835,2]
[377962435,1754631040455,-150.0,0.0002395,2]
[377962436,1754631040464,-160.0,0.00023955,2]
[377962437,1754631040474,-4554.79251867,0.0002398,2]
[377962438,1754631040483,-1699.4022888,0.00024,2]
[377962439,1754631040492,-455.4614438,0.00024,2]
[377962440,1754631040501,-322.96810668,0.00024,2]
[377962441,1754631040510,-1024.19302627,0.00024,7]
[377962442,1754631040519,-216.5651299,0.00024,7]
[377962443,1754631040528,-312.16666667,0.00024,7]
[377962444,1754631040537,-160.0,0.00024,7]
[377962445,1754631040546,-231.87430077,0.00024,7]
[377962446,1754631040555,-472.87,0.00024108,2]
[377962447,1754631040564,-460.0,0.00024108,2]
[377962449,1754631040573,-460.0,0.00024108,2]
[377962451,1754631040582,-460.0,0.00024108,2]
[377962453,1754631040591,-460.0,0.00024108,2]
[377962455,1754631040601,-639.25,0.00024108,2]
[377962457,1754631040609,-438.75360098,0.00024108,2]
[377962460,1754631040635,-460.0,0.00022465,2]
[377962462,1754631040644,-691.81639902,0.00024108,2]
[377962464,1754631040653,-460.0,0.00024108,2]
[377962466,1754631040662,-1075.21,0.00024108,2]
[377962468,1754631040671,-880.66,0.00024108,2]
[377962470,1754631040680,-989.44,0.00024109,2]
[377962472,1754631040690,-505.25,0.00024109,2]
[377962474,1754631040699,-600.8,0.00024109,2]
[377962476,1754631040708,-460.0,0.00024109,2]
[377962479,1754631040718,-559.46,0.00024109,2]
[377962480,1754631040728,-350.6165264,0.00024109,2]
[377962483,1754631040740,-109.3834736,0.00024109,2]
[377962485,1754631040750,-335.73796817,0.00024109,2]
[377962487,1754631040759,-18.56453339,0.00024109,2]
[377962489,1754631040773,-441.43546661,0.00024109,2]
[377962491,1754631040782,-94.87855823,0.00024109,2]
[377962856,1754631045343,-189.49405022,0.00021704,2]
[377962857,1754631045355,-10.30933554,0.00021704,2]
[377962858,1754631045364,-460.0,0.00022739,2]
[377962859,1754631045374,-390.22584391,0.00023013,2]
[377962860,1754631045384,-365.49,0.00024104,2]
[377962861,1754631045393,-365.12144177,0.00024109,2]
[377962862,1754631045402,-460.0,0.00024382,2]
[377962863,1754631045411,-460.0,0.00024382,2]
[377962864,1754631045421,-460.0,0.00024382,2]
[377962865,1754631045430,-460.0,0.00024382,2]
[377962867,1754631045439,-639.25,0.00024382,2]
[377962868,1754631045449,-1130.57,0.00024382,2]
[377962870,1754631045459,-460.0,0.00024382,2]
[377962871,1754631045468,-1075.21,0.00024382,2]
[377962872,1754631045477,-880.66,0.00024382,2]
[377962873,1754631045486,-989.44,0.00024383,2]
[377962874,1754631045496,-505.25,0.00024383,2]
[377962876,1754631045505,-84.69950297,0.00024383,2]
[377962879,1754631045516,-344.95327808,0.00024383,2]
[377962881,1754631045528,-171.14721895,0.00024383,2]
[377962883,1754631045537,-460.0,0.00024383,2]
[377962885,1754631045547,-559.46,0.00024383,2]
[377962887,1754631045556,-460.0,0.00024383,2]
[377962889,1754631045565,-460.0,0.00024383,2]
[377962891,1754631045575,-460.0,0.00024383,2]
[377962893,1754631045585,-151.0,0.00024437,2]
[377962895,1754631045594,-388.685,0.00024488,7]
[377962897,1754631045604,-260.0,0.00024502,2]
[377962899,1754631045614,-1540.0,0.0002457,2]
[377962901,1754631045624,-636.0,0.0002459,2]
[377962904,1754631045634,-971.0,0.0002459,2]
[377962906,1754631045643,-2149.0,0.0002459,2]
[377962907,1754631045652,-408.0,0.0002459,2]
[377962910,1754631045662,-414.462,0.0002459,2]
[377962911,1754631045672,-460.0,0.00024656,2]
[377962914,1754631045682,-460.0,0.00024656,2]
[377962916,1754631045691,-460.0,0.00024656,2]
[377962918,1754631045700,-460.0,0.00024656,2]
[377962920,1754631045710,-639.25,0.00024656,2]
[377962922,1754631045719,-1130.57,0.00024656,2]
[377962924,1754631045728,-460.0,0.00024656,2]
[377962926,1754631045738,-1075.21,0.00024656,2]
[377962928,1754631045747,-880.66,0.00024656,2]
[377962930,1754631045756,-989.44,0.00024657,2]
[377962932,1754631045765,-505.25,0.00024657,2]
[377962934,1754631045774,-600.8,0.00024657,2]
[377962936,1754631045783,-460.0,0.00024657,2]
[377962938,1754631045793,-559.46,0.00024657,2]
[377962939,1754631045801,-460.0,0.00024657,2]
[377962942,1754631045811,-460.0,0.00024657,2]
[377962944,1754631045821,-460.0,0.00024657,2]
[377962946,1754631045830,-200.0,0.00024658,15]
[377962948,1754631045840,-500.0,0.00024658,2]
[377962950,1754631045849,-2312.99518043,0.000247,2]
[377962952,1754631045861,-4226.27416441,0.000247,2]
[377962954,1754631045870,-200.0,0.00024733,15]
[377962956,1754631045880,-200.0,0.00024733,15]
[377962958,1754631045889,-300.0,0.00024733,15]
[377962960,1754631045899,-159.0,0.000248,7]
[377962962,1754631045908,-160.79807477,0.000248,5]
[377962964,1754631045918,-2521.87131982,0.000248,2]
[377963425,1754632232514,-199.80338576,0.00021474,2]
[377963427,1754632233027,-1200.0,0.00021573,2]
[377963428,1754632233037,-6438.3782255,0.00021574,2]
[377963429,1754632233046,-902.54621326,0.00021574,2]
[377963973,1754632245034,-3482.24524875,0.00021574,2]
[377963975,1754632245046,-4421.53102608,0.00021574,2]
[377963981,1754632245092,-11802.000002,0.00021574,2]
[377964103,1754632246417,-4291.67750991,0.00021574,2]
[377964105,1754632246427,-390.89,0.00021917,2]
[377964107,1754632246437,-506.07,0.00021917,2]
[377964109,1754632246447,-866.21,0.00021917,2]
[377964111,1754632246457,-460.0,0.00021917,2]
[377964113,1754632246466,-460.0,0.00021917,2]
[377964115,1754632246476,-460.0,0.00021917,2]
[377964117,1754632246490,-460.0,0.00021917,2]
[377964120,1754632246500,-460.0,0.00021917,2]
[377964122,1754632246511,-460.0,0.00022189,2]
[377964123,1754632246520,-460.0,0.00022189,2]
[377964125,1754632246529,-294.97151899,0.0002219,2]
[377964127,1754632246538,-460.0,0.0002219,2]
[377964129,1754632246548,-806.41,0.0002219,2]
[377964131,1754632246557,-460.0,0.0002219,2]
[377964133,1754632246568,-460.0,0.0002219,2]
[377964135,1754632246578,-460.0,0.0002219,2]
[377964137,1754632246588,-700.85,0.0002219,2]
[377964139,1754632246603,-460.0,0.0002219,2]
[377964141,1754632246615,-460.0,0.0002219,2]
[377964143,1754632246624,-506.07,0.00022191,2]
[377964145,1754632246633,-866.21,0.00022191,2]
[377964147,1754632246643,-86.73185809,0.00022191,2]
[377964150,1754632246655,-373.26814191,0.00022191,2]
[377964152,1754632246664,-460.0,0.00022191,2]
[377964154,1754632246674,-232.8,0.00022191,2]
[377964156,1754632246683,-460.0,0.00022191,2]
[377964158,1754632246692,-460.0,0.00022191,2]
[377964160,1754632246701,-252.86153142,0.00022364,2]
[377964162,1754632246711,-460.0,0.00022463,2]
[377964163,1754632246720,-460.0,0.00022463,2]
[377964165,1754632246729,-460.0,0.00022464,2]
[377964167,1754632246739,-806.41,0.00022464,2]
[377964170,1754632246748,-460.0,0.00022464,2]
[377964171,1754632246758,-460.0,0.00022464,2]
[377964173,1754632246767,-460.0,0.00022464,2]
[377964176,1754632246777,-460.0,0.00022464,2]
[377964178,1754632246786,-460.0,0.00022464,2]
[377964179,1754632246795,-700.85,0.00022464,2]
[377964181,1754632246808,-460.0,0.00022464,2]
[377964184,1754632246818,-460.0,0.00022464,2]
[377964185,1754632246828,-460.0,0.00022464,2]
[377964187,1754632246837,-660.5,0.00022464,2]
[377964189,1754632246847,-460.0,0.00022464,2]
[377964191,1754632246866,-506.07,0.00022465,2]
[377964193,1754632246882,-866.21,0.00022465,2]
[377964195,1754632246891,-460.0,0.00022465,2]
[377964197,1754632246900,-460.0,0.00022465,2]
[377964200,1754632246911,-460.0,0.00022465,2]
[377964201,1754632246920,-460.0,0.00022465,2]
[377964203,1754632246929,-200.0,0.00022652,15]
[377964206,1754632246939,-300.0,0.00022652,15]
[377964207,1754632246948,-251.82,0.00022737,2]
[377964209,1754632246957,-460.0,0.00022737,2]
[377964211,1754632246967,-460.0,0.00022738,2]
[377964213,1754632246976,-806.41,0.00022738,2]
[377964215,1754632246987,-460.0,0.00022738,2]
[377964218,1754632246998,-460.0,0.00022738,2]
[377964219,1754632247009,-460.0,0.00022738,2]
[377964222,1754632247019,-460.0,0.00022738,2]
[377964223,1754632247031,-460.0,0.00022738,2]
[377964225,1754632247040,-70.16647625,0.00022738,2]
[377964228,1754632247052,-630.68352375,0.00022738,2]
[377964230,1754632247062,-460.0,0.00022738,2]
[377964232,1754632247071,-460.0,0.00022738,2]
[377964234,1754632247084,-460.0,0.00022738,2]
[377964236,1754632247093,-660.5,0.00022738,2]
[377964238,1754632247102,-460.0,0.00022738,2]
[377964240,1754632247110,-506.07,0.00022739,2]